bitfinex-derivatives/quotes_ETHF0:USTF0_20241020
["timestamp","ask_amount","ask_price","bid_price","bid_amount"]
[1729428768725,0.3772,2651.3,2651.2,3.2078]
[1729428769228,0.3968,2651.4,2651.2,3.2078]
[1729428769431,0.37713,2651.7,2651.3,0.37718]
[1729428769634,0.37716,2651.5,2651.3,1.79337943]
[1729428769832,0.37716,2651.5,2651.4,0.98689943]
[1729428770533,0.37716,2651.5,2651.3,1.79337943]
[1729428770741,0.37715,2651.6,2651.3,0.80648]
[1729428770932,0.80394,2651.7,2651.4,0.37717]
[1729428771132,0.80394,2651.7,2651.5,4.0072]
[1729428771331,0.37712,2651.8,2651.5,4.38435]
[1729428771637,0.37712,2651.8,2651.6,0.3891]
[1729428772431,0.4123,2651.9,2651.6,0.3891]
[1729428772636,0.37713,2651.7,2651.6,1.37599943]
[1729428773937,0.37712,2651.8,2651.6,1.37599943]
[1729428774325,3.2078,2652.4,2651.8,0.37711]
[1729428774528,0.3771,2652.0,2651.9,1.2394]
[1729428776240,0.37708,2652.1,2651.9,1.2394]
[1729428776440,0.37708,2652.1,2651.9,4.4472]
[1729428776733,0.37708,2652.1,2651.9,5.43409943]
[1729428777036,0.37708,2652.1,2651.9,5.81119943]
[1729428777634,0.37708,2652.1,2652.0,2.5469726]
[1729428778235,0.37708,2652.1,2652.0,0.98689943]
[1729428779631,0.37708,2652.1,2651.7,1.97678112]
[1729428779632,0.3771,2651.9,2651.7,0.98689943]
[1729428779843,0.37713,2651.7,2651.6,0.98689943]
[1729428780233,0.37714,2651.6,2651.5,0.98689943]
[1729428780434,0.37714,2651.6,2651.5,1.55997258]
[1729428780740,0.37714,2651.6,2651.5,3.04253577]
[1729428781647,0.37714,2651.6,2651.5,2.54765763]
[1729428782234,0.37714,2651.6,2651.5,0.98768505]
[1729428782543,0.37714,2651.6,2651.5,2.54776502]
[1729428783540,0.37714,2651.6,2651.5,0.98768505]
[1729428783938,0.8244,2651.8,2651.4,1.82788505]
[1729428783939,0.37716,2651.5,2651.4,1.82788505]
[1729428784139,0.37716,2651.5,2651.4,3.38799598]
[1729428784438,0.37716,2651.5,2651.4,3.38799536]
[1729428785842,0.37716,2651.5,2651.4,0.8402]
[1729428786146,0.37716,2651.5,2651.4,0.4245]
[1729428787044,1.76721,2651.8,2651.2,1.40148505]
[1729428787247,0.79639,2651.4,2651.2,1.40148505]
[1729428788536,0.79639,2651.4,2651.2,4.60928505]
[1729428789247,0.37719,2651.3,2651.2,4.60928505]
[1729428789646,0.37719,2651.3,2651.2,3.6216]
[1729428792350,0.37719,2651.3,2651.2,3.2078]
[1729428793258,0.77339,2651.3,2651.2,3.2078]
[1729428793649,0.3962,2651.3,2651.1,1.40508505]
[1729428793849,0.3962,2651.3,2651.0,1.39658505]
[1729428794047,0.37722,2651.1,2651.0,0.98768505]
[1729428794450,0.3962,2651.3,2650.9,1.41228505]
[1729428794660,0.78883,2651.0,2650.9,1.41228505]
[1729428796649,0.78883,2651.0,2650.9,0.4246]
[1729428799366,0.37723,2651.0,2650.9,0.4246]
[1729428802673,41.74297,2651.4,2650.9,0.4246]
[1729428802978,0.37723,2651.0,2650.9,0.80184]
[1729428803176,0.3977,2651.4,2650.9,0.4246]
[1729428803473,0.37721,2651.2,2651.1,0.37722]
[1729428803975,0.3977,2651.4,2651.1,0.37722]
[1729428804170,0.3772,2651.3,2651.2,0.4261]
[1729428804369,0.3772,2651.3,2651.2,0.8525]
[1729428807493,0.3977,2651.4,2651.2,0.8525]
[1729428807772,0.37719,2651.3,2651.2,1.2297]
[1729428808967,0.37719,2651.3,2651.2,0.8525]
[1729428809372,0.37719,2651.3,2651.2,1.2297]
[1729428809571,0.37719,2651.3,2651.2,0.8525]
[1729428809974,0.3954,2651.5,2651.0,1.36490505]
[1729428810276,0.37722,2651.1,2651.0,0.4129]
[1729428811278,0.77141,2651.2,2651.0,0.79013]
[1729428811477,0.3942,2651.2,2651.0,0.4129]
[1729428811680,0.37722,2651.1,2651.0,0.4129]
[1729428812071,44.95068,2651.6,2651.0,0.4129]
[1729428812275,0.3772,2651.3,2651.1,3.2078]
[1729428812476,0.3942,2651.5,2651.1,3.2078]
[1729428812678,0.3772,2651.2,2651.1,3.2078]
[1729428812877,0.3942,2651.5,2651.1,3.58501]
[1729428813183,0.37718,2651.4,2651.1,3.2078]
[1729428813479,0.37718,2651.4,2651.1,3.58501]
[1729428813679,0.37718,2651.4,2651.1,4.57269505]
[1729428813875,0.3942,2651.5,2651.1,4.57269505]
[1729428814076,0.37719,2651.3,2651.1,4.57269505]
[1729428814775,0.37718,2651.4,2651.1,4.57269505]
[1729428815078,0.3942,2651.5,2651.1,4.19548505]
[1729428815280,0.37719,2651.3,2651.1,4.57269505]
[1729428815583,0.37719,2651.3,2651.1,3.2078]
[1729428815772,0.3772,2651.2,2651.1,3.2078]
[1729428815972,0.3772,2651.2,2651.0,0.4129]
[1729428815973,0.37722,2651.1,2651.0,0.4129]
[1729428818784,0.4264,2651.2,2650.9,0.4202]
[1729428819088,0.37723,2651.0,2650.9,0.4202]
[1729428819474,0.4264,2651.2,2650.8,0.3897]
[1729428819774,0.37729,2650.7,2650.5,1.40018505]
[1729428819980,0.37729,2650.7,2650.5,0.8226]
[1729428820584,0.37729,2650.7,2650.6,0.3903]
[1729428822995,0.37729,2650.6,2650.5,0.8226]
[1729428823173,0.76899,2650.6,2650.5,0.8226]
[1729428823380,0.37732,2650.4,2650.3,0.4059]
[1729428823679,0.37732,2650.4,2650.3,0.8204]
[1729428827082,0.37732,2650.4,2650.3,0.4059]
[1729428827885,0.4055,2650.5,2650.2,3.6214]
[1729428828078,0.37733,2650.3,2650.2,3.6214]
[1729428829792,0.37733,2650.3,2650.2,0.4136]
[1729428829992,0.37733,2650.3,2650.2,3.6214]
[1729428830690,0.37733,2650.3,2650.2,0.4136]
[1729428831092,0.37733,2650.3,2650.2,3.6214]
[1729428831487,0.4055,2650.5,2650.2,3.6214]
[1729428831690,0.37732,2650.4,2650.2,3.6214]
[1729428832292,0.4055,2650.5,2650.2,3.6214]
[1729428832494,0.37732,2650.4,2650.2,3.6214]
[1729428833495,0.37732,2650.4,2650.2,3.99874]
[1729428833793,0.37732,2650.4,2650.2,3.6214]
[1729428833993,0.37733,2650.3,2650.2,3.6214]
[1729428834692,41.1917,2650.6,2650.2,3.6214]
[1729428834997,0.37729,2650.6,2650.4,0.37731]
[1729428835298,0.37729,2650.6,2650.5,3.6278]
[1729428835489,0.37729,2650.6,2650.5,0.8168]
[1729428835689,0.37729,2650.6,2650.5,4.0246]
[1729428835889,0.37729,2650.6,2650.5,4.4019]
[1729428836097,0.37729,2650.6,2650.5,4.0246]
[1729428836299,0.37729,2650.6,2650.5,0.8168]
[1729428836789,0.37729,2650.6,2650.5,1.1941]
[1729428840397,0.37728,2650.7,2650.6,0.37728]
[1729428840699,0.37727,2650.7,2650.6,0.3873]
[1729428842589,0.3888,2650.8,2650.6,0.3873]
[1729428842796,0.37727,2650.7,2650.6,0.76458]
[1729428843204,41.17727,2650.7,2650.6,0.76458]
[1729428843691,41.17727,2650.7,2650.6,0.3873]
[1729428844090,41.17727,2650.7,2650.6,0.76459]
[1729428844598,40.8,2650.7,2650.6,0.76459]
[1729428844796,41.17727,2650.7,2650.6,0.3873]
[1729428845591,40.8,2650.7,2650.6,0.3873]
[1729428845791,41.17727,2650.7,2650.6,0.3873]
[1729428846896,0.37727,2650.7,2650.6,0.3873]
[1729428859524,0.37727,2650.7,2650.6,1.37488053]
[1729428860124,0.37727,2650.7,2650.6,0.3873]
[1729428860327,0.37727,2650.7,2650.6,1.37488053]
[1729428861239,0.37727,2650.7,2650.6,2.93644051]
[1729428861618,0.37727,2650.7,2650.6,3.43142317]
[1729428864636,0.37727,2650.7,2650.6,1.94885998]
[1729428865136,0.37727,2650.7,2650.6,2.06682436]
[1729428865535,0.37727,2650.7,2650.6,1.94885998]
[1729428869732,0.37727,2650.7,2650.6,2.93878653]
[1729428870038,0.37727,2650.7,2650.6,1.95081167]
[1729428870943,0.37727,2650.7,2650.6,2.94075906]
[1729428871246,0.37727,2650.7,2650.6,1.37724739]
[1729428872736,0.37727,2650.7,2650.6,2.94097153]
[1729428872941,0.37727,2650.7,2650.6,1.37724739]
[1729428873143,0.37727,2650.7,2650.6,2.9409541]
[1729428873338,0.37727,2650.7,2650.6,1.37724739]
[1729428873546,0.37727,2650.7,2650.6,2.94119359]
[1729428873749,40.8,2650.8,2650.6,1.75453739]
[1729428873750,41.17727,2650.8,2650.6,1.75453739]
[1729428873937,41.17727,2650.8,2650.7,2.55388238]
[1729428874443,41.17727,2650.8,2650.7,2.55386948]
[1729428876241,41.17727,2650.8,2650.7,1.56392209]
[1729428877250,41.17727,2650.8,2650.7,3.04919137]
[1729428878257,41.17727,2650.8,2650.7,2.55414439]
[1729428878450,41.58947,2650.8,2650.7,0.9902223]
[1729428878644,41.58947,2650.8,2650.4,1.97678112]
[1729428878645,44.985,2650.8,2650.5,0.9902223]
[1729428878968,0.37729,2650.6,2650.5,0.9902223]
[1729428879255,0.3773,2650.5,2650.4,0.9902223]
[1729428879455,1.2088,2650.5,2650.4,2.55394028]
[1729428879648,1.2088,2650.5,2650.4,1.56378404]
[1729428879845,1.2088,2650.5,2650.4,0.9901664]
[1729428881142,0.37732,2650.4,2650.3,0.9901664]
[1729428881349,0.37732,2650.4,2650.3,2.55356181]
[1729428882248,0.37732,2650.4,2650.3,0.9901664]
[1729428883150,0.37732,2650.4,2650.3,2.55309793]
[1729428884249,0.37732,2650.4,2650.3,0.9901664]
[1729428889159,0.37733,2650.3,2650.2,1.4192664]
[1729428890553,0.37733,2650.3,2650.2,0.4291]
[1729428891352,0.37734,2650.2,2650.1,0.4133]
[1729428891553,0.77944,2650.2,2650.1,0.4133]
[1729428897356,0.77944,2650.2,2649.8,0.3774]
[1729428897357,0.3774,2649.8,2649.7,0.98850742]
[1729428897556,0.37747,2649.4,2649.2,1.36598742]
[1729428897757,0.37747,2649.3,2649.2,1.36598742]
[1729428897949,40.8,2649.6,2649.2,3.42121513]
[1729428898148,0.37746,2649.4,2649.3,0.98858607]
[1729428898559,40.8,2649.6,2649.2,0.98858607]
[1729428898863,0.37746,2649.4,2649.3,0.98858607]
[1729428899267,0.37747,2649.3,2649.2,0.98858607]
[1729428899561,0.37747,2649.3,2649.2,2.54649133]
[1729428901549,0.37747,2649.3,2649.2,0.98858607]
[1729428902459,0.37749,2649.2,2649.1,5.01798607]
[1729428902965,0.37749,2649.2,2649.1,6.57488649]
[1729428903149,0.37749,2649.2,2649.1,5.01798607]
[1729428903955,0.37748,2649.3,2649.1,5.01798607]
[1729428904255,0.37748,2649.3,2649.1,5.39548607]
[1729428904453,0.37748,2649.3,2649.1,5.01798607]
[1729428905255,0.37748,2649.3,2649.1,4.0294]
[1729428905562,2.16076,2649.7,2649.1,4.0294]
[1729428905759,0.37749,2649.2,2649.1,4.0294]
[1729428907953,0.37749,2649.2,2649.1,0.8216]
[1729428910665,0.37748,2649.3,2649.1,1.1991]
[1729428910868,0.37749,2649.2,2649.1,0.8216]
[1729428911756,1.2172,2649.7,2649.1,4.0294]
[1729428911968,0.37746,2649.4,2649.2,0.37748]
[1729428912164,0.37746,2649.4,2649.3,0.3971]
[1729428912368,0.3943,2649.7,2649.3,0.3971]
[1729428912562,0.37746,2649.5,2649.3,0.3971]
[1729428912861,0.37744,2649.6,2649.4,3.58526]
[1729428913060,0.37744,2649.6,2649.5,0.7996]
[1729428913857,0.37744,2649.6,2649.5,1.17704]
[1729428914064,40.8,2649.9,2649.5,4.0074]
[1729428914361,0.37743,2649.6,2649.5,4.0074]
[1729428914562,0.37743,2649.6,2649.5,4.38484]
[1729428915859,0.37743,2649.6,2649.5,4.0074]
[1729428918365,0.37743,2649.6,2649.5,3.6189]
[1729428919860,4.15183,2649.6,2649.5,3.2078]
[1729428920467,0.37749,2649.2,2649.1,1.2348]
[1729428920969,0.37749,2649.2,2649.1,0.8402]
[1729428921666,0.37748,2649.3,2649.1,1.21769]
[1729428922062,0.8307,2649.5,2649.1,0.8402]
[1729428922268,0.37749,2649.2,2649.1,0.8402]
[1729428922572,0.8307,2649.5,2649.1,1.2177]
[1729428922872,0.37749,2649.2,2649.1,0.8402]
[1729428923171,0.8307,2649.5,2649.1,0.8402]
[1729428923468,0.37749,2649.2,2649.1,0.8402]
[1729428925064,0.8307,2649.5,2649.1,0.8402]
[1729428925269,0.37749,2649.2,2649.1,0.8402]
[1729428927470,0.8307,2649.5,2649.0,3.2078]
[1729428927678,0.3775,2649.1,2649.0,4.0244]
[1729428928265,0.8307,2649.5,2649.0,4.40191]
[1729428928466,0.3775,2649.1,2649.0,4.0244]
[1729428931271,0.3775,2649.1,2649.0,3.6105]
[1729428933278,0.3775,2649.1,2649.0,0.4027]
[1729428937177,0.3775,2649.1,2649.0,1.39128607]
[1729428937378,0.3775,2649.1,2649.0,0.4027]
[1729428940271,0.37751,2649.0,2648.9,0.98858607]
[1729428940578,0.78771,2649.0,2648.9,0.98858607]
[1729428940872,1.17651,2649.0,2648.9,2.54885864]
[1729428941783,1.17651,2649.0,2648.9,0.98858607]
[1729428942175,1.17651,2649.0,2648.9,2.54877224]
[1729428942483,1.17651,2649.0,2648.9,0.98858607]
[1729428942679,1.17651,2649.0,2648.9,2.54870941]
[1729428943178,1.17651,2649.0,2648.9,1.56012334]
[1729428943480,0.94383,2648.9,2648.4,1.87336955]
[1729428943778,0.37759,2648.5,2648.4,0.3905]
[1729428944077,0.37759,2648.5,2648.4,1.56073392]
[1729428944275,0.37761,2648.3,2648.2,1.48286955]
[1729428944478,0.37761,2648.3,2648.2,3.03886693]
[1729428944882,0.37761,2648.3,2648.2,3.03886439]
[1729428945272,0.37761,2648.3,2648.2,3.03946385]
[1729428945477,0.37763,2648.2,2648.1,0.403]
[1729428949176,4.94239,2648.5,2648.0,0.8043]
[1729428949177,0.37764,2648.1,2648.0,0.8043]
[1729428955390,4.94239,2648.5,2648.0,1.18195]
[1729428955690,0.37764,2648.1,2648.0,0.8043]
[1729428959688,0.37764,2648.1,2648.0,0.3925]
[1729428961385,0.37764,2648.1,2648.0,0.77016]
[1729428962182,0.37764,2648.1,2648.0,0.3925]
[1729428962991,0.37764,2648.1,2648.0,0.7839]
[1729428966187,0.94404,2648.3,2647.6,0.37771]
[1729428966390,0.37769,2647.8,2647.7,3.2078]
[1729428966592,0.94411,2648.2,2647.6,0.37771]
[1729428966890,0.37769,2647.8,2647.7,3.2078]
[1729428967684,0.37769,2647.8,2647.7,0.4105]
[1729428968286,0.3965,2648.0,2647.5,0.414]
[1729428968493,0.3965,2648.0,2647.6,0.4105]
[1729428968693,0.3777,2647.7,2647.6,0.4105]
[1729428970592,0.37773,2647.5,2647.4,3.2078]
[1729428971899,0.37773,2647.5,2647.4,0.8488]
[1729428975395,45.37224,2647.8,2647.2,0.3873]
[1729428975396,0.37776,2647.3,2647.2,0.3873]
[1729428979495,0.83,2647.5,2647.1,0.8261]
[1729428979702,0.37777,2647.2,2647.1,0.8261]
[1729428979900,0.3778,2647.0,2646.9,3.2078]
[1729428980200,0.37784,2646.7,2646.6,4.0517]
[1729428981293,0.37789,2646.4,2646.3,3.2078]
[1729428981497,1.35882,2647.0,2646.3,3.58569]
[1729428981807,1.35882,2647.0,2646.2,0.8226]
[1729428981808,0.4245,2647.1,2646.6,3.2078]
[1729428981998,0.37782,2646.9,2646.7,0.8226]
[1729428982306,0.4245,2647.1,2646.7,0.8226]
[1729428982604,0.4245,2647.1,2646.7,1.60654]
[1729428982899,0.37783,2646.8,2646.7,1.2287]
[1729428983100,0.4245,2647.1,2646.4,0.37788]
[1729428983101,0.37785,2646.7,2646.4,0.37788]
[1729428983293,0.78976,2646.6,2646.4,0.37788]
[1729428983497,0.78976,2646.6,2646.5,0.3967]
[1729428984502,0.78976,2646.6,2646.5,0.3917]
[1729428986597,0.3779,2646.3,2646.2,3.2078]
[1729428987208,40.8,2646.3,2646.1,0.3896]
[1729428987399,0.37791,2646.2,2646.1,0.3896]
[1729428987820,0.37791,2646.2,2646.1,0.7945]
[1729428988510,0.37791,2646.3,2646.1,1.17243]
[1729428988809,0.37791,2646.3,2646.2,3.2078]
[1729428989000,0.37791,2646.3,2646.1,1.17243]
[1729428989599,0.37791,2646.3,2646.2,3.2078]
[1729428990103,0.37791,2646.3,2646.1,1.17243]
[1729428990104,40.8,2646.5,2646.1,0.7945]
[1729428990311,0.37789,2646.4,2646.2,3.58571]
[1729428990605,40.8,2646.5,2646.1,0.7945]
[1729428990806,0.37789,2646.4,2646.2,3.58571]
[1729428991003,0.4119,2646.6,2646.2,3.2078]
[1729428991205,0.37787,2646.5,2646.4,0.37789]
[1729428991402,0.37789,2646.4,2646.3,0.37789]
[1729428991611,0.4119,2646.6,2646.2,3.2078]
[1729428991802,3.2078,2646.8,2646.2,3.2078]
[1729428992010,0.37788,2646.5,2646.3,0.3779]
[1729428992203,3.6362,2646.8,2646.2,3.2078]
[1729428992405,0.37789,2646.4,2646.2,3.2078]
[1729428992611,3.6362,2646.8,2646.2,3.2078]
[1729428992809,0.37789,2646.4,2646.2,3.58571]
[1729428993004,3.6362,2646.8,2646.2,3.2078]
[1729428993206,4.5808,2646.8,2646.2,3.2078]
[1729428993513,0.3779,2646.4,2646.2,3.58571]
[1729428994117,4.5808,2646.8,2646.2,3.2078]
[1729428994303,0.3779,2646.3,2646.2,3.2078]
[1729428997509,0.37791,2646.2,2645.9,1.48346901]
[1729428997710,0.37796,2645.9,2645.8,0.8328]
[1729429004708,4.15246,2646.6,2645.8,7.8198]
[1729429004911,4.15246,2646.6,2645.8,4.0406]
[1729429004912,0.37796,2645.9,2645.8,4.0406]
[1729429005119,0.37794,2646.0,2645.8,4.41856]
[1729429005316,0.37794,2646.1,2645.8,4.41856]
[1729429005510,0.37794,2646.1,2645.9,0.37796]
[1729429005715,0.37787,2646.5,2645.9,0.37795]
[1729429005910,0.4043,2646.6,2646.1,0.37792]
[1729429006224,40.8,2646.7,2646.2,0.8323]
[1729429006516,0.37788,2646.5,2646.3,0.4114]
[1729429006708,40.8,2646.7,2646.3,0.4114]
[1729429007214,40.8,2646.7,2646.4,3.2078]
[1729429007215,0.37786,2646.6,2646.4,3.2078]
[1729429008217,0.37787,2646.5,2646.4,3.2078]
[1729429011422,0.37786,2646.6,2646.4,3.2078]
[1729429011620,40.8,2646.7,2646.4,3.2078]
[1729429011824,0.37787,2646.6,2646.4,3.2078]
[1729429013225,40.8,2646.7,2646.4,3.2078]
[1729429013226,0.37787,2646.5,2646.4,3.2078]
[1729429018227,0.37789,2646.4,2646.3,0.4114]
[1729429020525,0.37795,2646.0,2645.8,2.28746901]
[1729429020734,0.37795,2646.0,2645.9,3.2078]
[1729429021023,0.37796,2645.9,2645.8,0.8098]
[1729429021230,0.37796,2645.9,2645.8,2.36276594]
[1729429021437,0.37796,2645.9,2645.8,0.8098]
[1729429021926,0.37796,2645.9,2645.8,2.76005489]
[1729429022317,0.37796,2645.9,2645.8,1.2068]
[1729429023123,0.37796,2645.9,2645.8,0.7998]
[1729429023436,0.3995,2646.1,2645.6,3.2078]
[1729429023623,0.37799,2645.7,2645.6,3.2078]
[1729429025634,0.37799,2645.7,2645.2,1.89676901]
[1729429025635,0.37803,2645.4,2645.3,3.2078]
[1729429026121,40.8,2645.7,2645.3,4.76173336]
[1729429026430,40.8,2645.7,2645.3,4.69126901]
[1729429026633,0.80508,2645.8,2645.5,0.37801]
[1729429026822,3.2078,2646.0,2645.6,0.4255]
[1729429027019,0.37799,2645.7,2645.6,0.4255]
[1729429027224,0.37798,2645.8,2645.6,0.4255]
[1729429027422,40.8,2645.9,2645.6,0.4255]
[1729429027629,0.37799,2645.7,2645.6,0.4255]
[1729429027831,0.3918,2646.0,2645.6,0.4255]
[1729429028036,0.37799,2645.7,2645.6,0.4255]
[1729429029132,0.37803,2645.5,2645.3,5.06930901]
[1729429029330,0.9449,2645.9,2645.3,5.11676901]
[1729429029535,0.37803,2645.4,2645.3,3.6333]
[1729429032441,0.37803,2645.4,2645.3,3.2078]
[1729429033853,3.2078,2645.8,2645.3,3.2078]
[1729429034149,0.825,2646.1,2645.6,3.2078]
[1729429034348,0.37796,2645.9,2645.7,0.3916]
[1729429034548,0.37796,2645.9,2645.8,0.37797]
[1729429034754,0.37796,2645.9,2645.8,0.77247]
[1729429036251,0.37791,2646.3,2645.8,4.1737]
[1729429036548,0.37791,2646.3,2646.1,3.58572]
[1729429036749,41.17791,2646.3,2646.2,0.3929]
[1729429037454,40.8,2646.3,2645.8,3.2078]
[1729429037650,0.37794,2646.0,2645.9,0.3929]
[1729429038455,0.37799,2645.7,2645.6,0.3929]
[1729429041356,0.94489,2646.0,2645.5,0.4072]
[1729429041357,0.378,2645.6,2645.5,0.4072]
[1729429042356,0.394,2645.8,2645.2,1.88406901]
[1729429042550,0.37804,2645.3,2645.2,0.4006]
[1729429042753,0.37806,2645.2,2645.1,3.2078]
[1729429043062,0.37806,2645.2,2645.1,3.6375]
[1729429043560,1.7561,2645.7,2645.1,3.6375]
[1729429043752,0.8111,2645.7,2645.1,3.6375]
[1729429043956,0.37806,2645.2,2645.1,3.6375]
[1729429049153,4.15274,2645.8,2645.1,3.6375]
[1729429049154,3.2078,2646.7,2645.1,7.4183]
[1729429049352,3.2078,2646.7,2645.8,0.37797]
[1729429049353,0.37794,2646.1,2645.8,0.37797]
[1729429049658,0.37794,2646.0,2645.9,0.4045]
[1729429049961,0.37794,2646.1,2645.9,0.4045]
[1729429050158,0.37794,2646.0,2645.9,0.4045]
[1729429051564,0.94471,2646.5,2645.9,0.4045]
[1729429052064,0.37794,2646.0,2645.9,0.4045]
[1729429052359,0.37794,2646.0,2645.9,0.8295]
[1729429053656,0.37794,2646.0,2645.9,0.425]
[1729429053960,41.74478,2646.3,2645.7,3.2078]
[1729429053961,0.37797,2645.8,2645.7,3.2078]
[1729429054258,0.94483,2646.1,2645.6,0.3905]
[1729429054457,0.378,2645.6,2645.5,0.425]
[1729429055658,0.37803,2645.5,2645.3,3.2078]
[1729429056064,0.37803,2645.5,2645.3,3.58584]
[1729429056269,0.37801,2645.6,2645.3,3.58584]
[1729429056457,0.37802,2645.5,2645.3,3.58584]
[1729429057163,0.7933,2646.0,2645.3,3.2078]
[1729429057351,0.7933,2646.0,2645.5,0.37801]
[1729429057352,0.37799,2645.7,2645.5,0.37801]
[1729429058069,0.37799,2645.7,2645.6,3.2078]
[1729429059069,0.3959,2646.0,2645.6,3.2078]
[1729429059267,0.37797,2645.9,2645.7,0.77658]
[1729429059467,0.37797,2645.9,2645.8,0.3899]
[1729429059861,3.7792,2645.9,2645.6,3.2078]
[1729429060062,3.78,2645.8,2645.3,3.2078]
[1729429060260,0.4121,2645.7,2645.3,3.58584]
[1729429060561,0.37803,2645.4,2645.3,3.2078]
[1729429061559,0.4272,2645.6,2645.4,0.37802]
[1729429061560,0.80521,2645.6,2645.4,0.37802]
[1729429061765,0.4272,2645.6,2645.3,3.2078]
[1729429062164,0.37802,2645.5,2645.3,3.58584]
[1729429062465,0.37803,2645.4,2645.3,3.2078]
[1729429063465,0.37803,2645.4,2645.3,4.19725199]
[1729429063974,0.37803,2645.4,2645.3,6.24381437]
[1729429065260,0.37802,2645.5,2645.3,6.62185437]
[1729429065466,0.37802,2645.5,2645.4,2.544079]
[1729429065771,0.37802,2645.5,2645.4,1.554386]
[1729429066567,0.37802,2645.5,2645.4,2.54417343]
[1729429066872,0.37802,2645.5,2645.4,1.554386]
[1729429067167,0.37802,2645.5,2645.4,2.54414912]
[1729429067367,0.37802,2645.5,2645.4,1.554386]
[1729429067564,0.37802,2645.5,2645.4,2.54421942]
[1729429067759,0.37802,2645.5,2645.4,1.554386]
[1729429067974,0.37802,2645.5,2645.4,0.98984244]
[1729429067975,0.37801,2645.5,2645.4,0.98984244]
[1729429068473,0.37801,2645.5,2645.4,2.54459882]
[1729429069069,0.4247,2645.9,2645.4,1.55475638]
[1729429069367,0.37801,2645.6,2645.5,3.36041423]
[1729429070075,0.37801,2645.6,2645.5,1.38601052]
[1729429070969,0.37801,2645.6,2645.5,0.3961]
[1729429074267,0.37803,2645.4,2645.3,4.19771052]
[1729429074584,0.37803,2645.4,2645.3,6.53136413]
[1729429074877,0.37802,2645.5,2645.3,6.15332413]
[1729429075179,0.37802,2645.5,2645.3,4.97654052]
[1729429075479,0.37802,2645.5,2645.4,0.98991052]
[1729429075772,0.37802,2645.5,2645.4,1.36794052]
[1729429076571,0.37802,2645.5,2645.4,2.54480257]
[1729429076771,0.37802,2645.5,2645.4,2.54480512]
[1729429076969,0.37799,2645.7,2645.5,0.37801]
[1729429077177,0.4247,2645.9,2645.5,3.2078]
[1729429077378,0.37801,2645.6,2645.5,3.2078]
[1729429078677,0.4247,2645.9,2645.5,3.2078]
[1729429078977,0.37797,2645.9,2645.7,1.36789052]
[1729429079178,0.37797,2645.9,2645.8,0.3958]
[1729429079479,0.37797,2645.9,2645.8,1.77891052]
[1729429079875,0.37797,2645.9,2645.8,1.38311052]
[1729429080071,0.37797,2645.9,2645.8,0.3932]
[1729429082183,0.37797,2645.9,2645.8,1.38311052]
[1729429082886,0.796,2646.2,2645.8,6.6381764]
[1729429083084,0.796,2646.2,2645.9,1.3939086]
[1729429083275,0.37794,2646.0,2645.9,1.3939086]
[1729429083481,0.37794,2646.0,2645.9,2.9494489]
[1729429083788,0.37794,2646.0,2645.9,1.3939086]
[1729429083980,0.37794,2646.0,2645.9,2.94939341]
[1729429084180,0.37794,2646.0,2645.9,0.9902086]
[1729429085790,0.37796,2645.9,2645.8,1.3834086]
[1729429085983,0.37796,2645.9,2645.8,1.38361042]
[1729429089291,0.37796,2645.9,2645.8,3.43060309]
[1729429089593,0.37796,2645.9,2645.8,3.43057716]
[1729429089981,40.8,2646.3,2645.8,7.20977716]
[1729429090188,1.36857,2646.6,2646.1,1.36820826]
[1729429090489,0.4239,2646.6,2646.2,2.22017826]
[1729429090684,0.37789,2646.4,2646.3,3.2078]
[1729429090884,40.8,2646.5,2646.3,0.3779]
[1729429091086,40.8,2646.5,2646.3,4.57597826]
[1729429091087,41.17788,2646.5,2646.3,4.57597826]
[1729429091593,41.17788,2646.5,2646.3,4.57596826]
[1729429091981,0.37789,2646.4,2646.3,4.57596826]
[1729429092186,0.37789,2646.4,2646.3,4.57597826]
[1729429092685,0.37786,2646.6,2646.5,0.37786]
[1729429092998,0.37787,2646.6,2646.4,0.37788]
[1729429093193,40.8,2646.5,2646.4,0.37788]
[1729429093588,41.17787,2646.5,2646.4,0.37788]
[1729429093787,40.8,2646.5,2646.4,0.37788]
[1729429096194,40.8,2646.5,2646.4,4.15628]
[1729429096389,0.4119,2646.9,2646.4,4.15628]
[1729429096596,0.37786,2646.6,2646.4,1.18688]
[1729429098295,0.37784,2646.7,2646.6,0.37785]
[1729429098600,0.4143,2647.1,2646.6,3.6155]
[1729429098897,0.37783,2646.8,2646.7,0.8155]
[1729429099498,1.88856,2647.7,2646.7,0.8155]
[1729429099499,0.37781,2647.0,2646.8,0.37782]
[1729429099690,0.37781,2647.0,2646.9,3.2078]
[1729429100086,40.8,2647.3,2646.9,3.2078]
[1729429100299,0.3778,2647.1,2647.0,0.4049]
[1729429100989,0.37779,2647.1,2646.8,0.809]
[1729429101191,0.37781,2646.9,2646.8,0.809]
[1729429101592,0.37781,2647.0,2646.8,1.18683]
[1729429101898,40.8,2647.3,2646.9,3.2078]
[1729429102107,10.96101612,2648.0,2646.9,3.2078]
[1729429102108,0.4135,2647.8,2646.9,3.2078]
[1729429102398,0.37778,2647.2,2647.0,0.7827]
[1729429102602,0.37774,2647.4,2647.0,0.8037]
[1729429102899,40.8,2647.5,2647.0,0.8037]
[1729429103100,0.37779,2647.1,2647.0,0.8037]
[1729429103694,0.37779,2647.1,2647.0,0.4049]
[1729429103898,0.3778,2647.0,2646.9,4.0168]
[1729429104096,0.3778,2647.0,2646.9,4.4043]
[1729429104795,0.37779,2647.1,2646.9,4.7821]
[1729429105494,41.2253,2647.5,2646.9,4.4043]